Workbook

Sheet Readme
B7: Disclaimer - This tool is intended to provide educational guidance for total cost of ownership and emissions comparsions of Propane and Battery Electric Forklifts. This tool is for informational and educational purposes only. Data has been collected from the real world industry to represent costs and emissions as accurately as possible. Please reach out to satish.guda@propane.com for any inputs or suggestions. Instructions for Usage of the tool 1) All the inputs are user defined inputs. Users can enter custom values in the value column. 2) Please enter the costs of propane and electric forklift just by the truck price alone in USD. (S.No 1 & 2) Note - Cost of one battery and one charger will be automatically added in calculations. 3) Enter cost of the propane gallon in USD. Typically, this is based on whole sale value with a marketer. (S.No 3) Note - Onroad autogas price is different than offroad price of propane. 4) Enter forklift propane consumption in gallons per hour (S.No 4) 5) Enter forklift electrical energy consumption in kWh per hour (S.No 5) 5) Enter the cost of electricity based on your location in USD (S.No 6) 6) Select the type of forklift battery - Lead Acid or Lithium Ion from the drop down list. Note - Costs and emissions will vary based on this selection. (S.No 7) 7) Enter the annual hours of operation of the forklift. (S.No 8) 8) Select the state of operation for the propane forklift only from the drop down list. (S.No 9) Note - Propane's carbon intensity varies by PADD region and the states that fall under that region. 9) Select the Independent System Operator (ISO) for the location of operation of the electric forklift. (S.No 10) Note - Emissions from electric forklift operation will vary by ISO supplying the electricity. 10) Enter the Carbon Intensity of Renewable Propane by the feedstock source. (S. No 11) Note - Carbon intensity of renewable propane varies by feedstock. 11) Entering Blend percentages by Weight: a) To choose conventional propane alone, enter 100 in S.No 12 Default Value Cell b) To choose renewable propane alone, enter 100 in S.No 13 Default Value Cell c) To choose renewable Dimethyl ether (DME) alone, enter 100 in S.No 14 Default Value Cell d) To choose a combination of all conventional propane, renewable propane and renewable DME, enter values in S.No 12, 13 and 14 such that value totals up to 100. Note - Blend percentages are by weight basis and not volume basis. 12) Units have been provided for each of the input values for guidance. 13) The output cost and emissions tables update themselves automatically by the inputs and selection of states and ISOs

Sheet Forklift_Tool_Calculations
B7: User Defined Inputs
B10: S.No | C10: Parameter | D10: Unit | E10: Value
B11: 1 | C11: Cost of Propane Forklift | D11: $ | E11: 30000
B12: 2 | C12: Cost of Electric Forklift | D12: $ | E12: 40000
B13: 3 | C13: Cost of Propane Gallon | D13: $/gal | E13: 2.5
B14: 4 | C14: Propane Consumption per hour | D14: gal/hr | E14: 1.056
B15: 5 | C15: Energy Consumption per hour | D15: kWh/hr | E15: 7.35
B16: 6 | C16: Cost of Electricity | D16: $/kWh | E16: 0.11
B17: 7 | C17: Type of Battery | D17: - | E17: Lithium Ion
B18: 8 | C18: Annual Hours of Operation | D18: hr | E18: 1700
B19: 9 | C19: State of Operation | D19: - | E19: Arizona
B20: 10 | C20: ISO for Electricity | D20: - | E20: Arizona Public Service Company
B21: 11 | C21: Carbon Intensity of Renewable Propane | D21: gCO2eq/MJ | E21: 43.5
B22: 12 | C22: Wt. percentage of Conventional Propane in blend | D22: % | E22: 100
B23: 13 | C23: Wt. percentage of Renewable Propane in blend | D23: % | E23: 0
B24: 14 | C24: Wt. percentage of Renewable DME in blend | D24: % | E24: 0
B27: Output - Total Cost of Ownership of Forklift by Energy Source
B30: S.No | C30: Cost Category | D30: Unit | E30: Propane | F30: ='Background Table'!C308 -> Lithium Ion Battery
B31: 1 | C31: Acquisition Cost | D31: $ | E31: ='Background Table'!E99 -> 30000 | F31: ='Background Table'!F99 -> 53500
B32: 2 | C32: Operating Cost | D32: $ | E32: ='Background Table'!E100 -> 7147 | F32: ='Background Table'!F100 -> 2979.95
B33: 3 | C33: Maintenance Cost | D33: $ | E33: ='Background Table'!E101 -> 1455 | F33: ='Background Table'!F101 -> 1700
B34: 4 | C34: Infrastructure Cost | D34: $ | E34: ='Background Table'!E102 -> 3595 | F34: ='Background Table'!F102 -> 29000
C35: Total Cost | D35: $ | E35: ='Background Table'!E103 -> 42197 | F35: ='Background Table'!F103 -> 87179.95
B38: Output - Carbon Footprint Emissions of Forklift by Energy Source
B41: S.No | C41: Energy Source of Forklift | D41: Unit | E41: Value
B42: 1 | C42: Conventional Propane | D42: MT CO2eq | E42: ='Background Table'!E294 -> 12.98776836
B43: 2 | C43: Renewable Propane | D43: MT CO2eq | E43: ='Background Table'!E295 -> 6.99910708
B44: 3 | C44: ='Background Table'!C312 -> 100% Conventional Propane, 0% Renewable Propane, 0% Renewable DME Blend | D44: MT CO2eq | E44: ='Background Table'!E296 -> 12.98776836
B45: 4 | C45: ='Background Table'!C308 -> Lithium Ion Battery | D45: MT CO2eq | E45: ='Background Table'!E297 -> 12.84160249
B72: Figure 1 - Total Cost of Ownership of Forklift by Energy Source (Annual Operation)
B96: Figure 2 - Carbon Footprint Emissions of Forklift by Energy Source (Annual Operation)

Sheet Background Table (hidden)
B2: User Defined Inputs
B5: S.No | C5: Parameter | D5: Unit | E5: Value | F5: Variable Using Entity | G5: Type | H5: Variable Code Name
B6: 1 | C6: Cost of Propane Forklift | D6: $ | E6: =Forklift_Tool_Calculations!E11 -> 30000 | F6: Propane Forklift | G6: Numeric field entry | H6: u1
B7: 2 | C7: Cost of Electric Forklift | D7: $ | E7: =Forklift_Tool_Calculations!E12 -> 40000 | F7: Electric Forklift | G7: Numeric field entry | H7: u2 | J7: Selected Inputs Table
B8: 3 | C8: Cost of Propane Gallon | D8: $/gal | E8: =Forklift_Tool_Calculations!E13 -> 2.5 | F8: Propane Forklift | G8: Numeric field entry | H8: u3
B9: 4 | C9: Propane Consumption per hour | D9: gal/hr | E9: =Forklift_Tool_Calculations!E14 -> 1.056 | F9: Propane Forklift | G9: Numeric field entry | H9: u4
B10: 5 | C10: Energy Consumption per hour | D10: kWh/hr | E10: =Forklift_Tool_Calculations!E15 -> 7.35 | F10: Electric Forklift | G10: Numeric field entry | H10: u5
B11: 6 | C11: Cost of Electricity | D11: $/kWh | E11: =Forklift_Tool_Calculations!E16 -> 0.11 | F11: Electric Forklift | G11: Numeric field entry | H11: u6
B12: 7 | C12: Type of Battery | D12: - | E12: =Forklift_Tool_Calculations!E17 -> Lithium Ion | F12: Electric Forklift | G12: Drop down selection | H12: u7
B13: 8 | C13: Annual Hours of operation | D13: hr | E13: =Forklift_Tool_Calculations!E18 -> 1700 | F13: Both Propane & Electric Forklfits | G13: Numeric field entry | H13: u8
B14: 9 | C14: State of Operation | D14: - | E14: =Forklift_Tool_Calculations!E19 -> Arizona | F14: Propane Forklift | G14: Drop down selection | H14: u9a
B15: 10 | C15: ISO for Electricity | D15: - | E15: =Forklift_Tool_Calculations!E20 -> Arizona Public Service Company | F15: Both Propane & Electric Forklfits | G15: Drop down selection | H15: u9b
B16: 11 | C16: Carbon Intensity of Renewable Propane | D16: gCO2eq/MJ | E16: =Forklift_Tool_Calculations!E21 -> 43.5 | F16: Propane Forklift | G16: Numeric field entry | H16: u10
B17: 12 | C17: Wt. percentage of Conventional Propane in blend | D17: % | E17: =Forklift_Tool_Calculations!E22 -> 100 | F17: Propane Forklift | G17: Numeric field entry | H17: u11
B18: 13 | C18: Wt. percentage of Renewable Propane in blend | D18: % | E18: =Forklift_Tool_Calculations!E23 -> 0 | F18: Propane Forklift | G18: Numeric field entry | H18: u12
B19: 14 | C19: Wt. percentage of Renewable DME in blend | D19: % | E19: =Forklift_Tool_Calculations!E24 -> 0 | F19: Propane Forklift | G19: Numeric field entry | H19: u13
B23: Background Constants
B26: S.No | C26: Parameter | D26: Unit | E26: Default Value | F26: Variable Using Entity | G26: Type | H26: Variable Code Name
B27: 1 | C27: Cost for Individual Propane Forklift Cylinder | D27: $ | E27: 275 | F27: Propane Forklift | G27: Hard code | H27: ibv1
B28: 2 | C28: Cost of Lead Acid Battery | D28: $ | E28: 4000 | F28: Electric Forklift | G28: Hard code | H28: ibv2
B29: 3 | C29: Cost of Lithium Ion Battery | D29: $ | E29: 10000 | F29: Electric Forklift | G29: Hard code | H29: ibv3
B30: 4 | C30: Industrial space rent per square foot | D30: $ | E30: 8 | F30: Both Propane & Electric Forklfits | G30: Hard code | H30: ibv4
B31: 5 | C31: Interior Space for Cylinder Storage | D31: sqft | E31: 20 | F31: Propane Forklift | G31: Hard code | H31: ibv5
B32: 6 | C32: Interior Space for Battery Storage and charging | D32: sqft | E32: 200 | F32: Electric Forklift | G32: Hard code | H32: ibv6
B33: 7 | C33: Exterior Space for Cylinder Storage | D33: sqft | E33: 20 | F33: Propane Forklift | G33: Hard code | H33: ibv7
B34: 8 | C34: Exterior Space for Battery Storage and charging | D34: sqft | E34: 0 | F34: Electric Forklift | G34: Hard code | H34: ibv8 | J34: Background Cost Constants Table
B35: 9 | C35: Exchange Tanks | D35: $ | E35: 73 | F35: Propane Forklift | G35: Hard code | H35: ibv9
B36: 10 | C36: Cylinder or Tank Fixtures | D36: $ | E36: 0 | F36: Propane Forklift | G36: Hard code | H36: ibv10
B37: 11 | C37: Additional Battery - Lead Acid | D37: $ | E37: 4000 | F37: Electric Forklift | G37: Hard code | H37: ibv11
B38: 12 | C38: Additional Battery - Lithium Ion | D38: $ | E38: 10000 | F38: Electric Forklift | G38: Hard code | H38: ibv12
B39: 13 | C39: Battery Storage or Charging Fixtures | D39: $ | E39: 2500 | F39: Electric Forklift | G39: Hard code | H39: ibv13
B40: 14 | C40: Battery Extractor | D40: $ | E40: 1000 | F40: Electric Forklift | G40: Hard code | H40: ibv14
B41: 15 | C41: Emergency Wash Station and Watering Equipment for Propane Forklift | D41: $ | E41: 3000 | F41: Propane Forklift | G41: Hard code | H41: ibv15
B42: 16 | C42: Emergency Wash Station and Watering Equipment for Electric Forklift | D42: $ | E42: 3600 | F42: Electric Forklift | G42: Hard code | H42: ibv16
B43: 17 | C43: Fire or Acid Spill Containment | D43: $ | E43: 1000 | F43: Electric Forklift | G43: Hard code | H43: ibv17
B44: 18 | C44: Installation of Charge Room Equipment and Fixtures | D44: $ | E44: 1000 | F44: Electric Forklift | G44: Hard code | H44: ibv18
B45: 19 | C45: Installation of Cylinder Storage Room Equipment and Fixtures | D45: $ | E45: 0 | F45: Propane Forklift | G45: Hard code | H45: ibv19
B46: 20 | C46: Additional Electric Wiring | D46: $ | E46: 400 | F46: Electric Forklift | G46: Hard code | H46: ibv20
B47: 21 | C47: Electric Supply Upgrade Costs | D47: $ | E47: 800 | F47: Electric Forklift | G47: Hard code | H47: ibv21
B48: 22 | C48: Additional Charger | D48: $ | E48: 3500 | F48: Electric Forklift | G48: Hard code | H48: ibv22
B49: 23 | C49: Refueling or Charging Training | D49: $ | E49: 356 | F49: Both Propane & Electric Forklfits | G49: Hard code | H49: ibv23
B50: 24 | C50: On site maintenance for Propane Forklift | D50: $ | E50: 1335 | F50: Propane Forklift | G50: Hard code | H50: ibv24
B51: 25 | C51: On site maintenance for Electric Forklift | D51: $ | E51: 1700 | F51: Electric Forklift | G51: Hard code | H51: ibv25
B52: 26 | C52: Average Repair Cost for Propane Forklift | D52: $ | E52: 20 | F52: Propane Forklift | G52: Hard code | H52: ibv26
B53: 27 | C53: Repair Frequency for Propane Forklift in a year | D53: - | E53: 6 | F53: Propane Forklift | G53: Hard code | H53: ibv27
B54: 28 | C54: Battery Degradation Cost due to temperature | D54: $ | E54: 0 | F54: Electric Forklift | G54: Hard code | H54: ibv28
B55: 29 | C55: Costs for Running out of propane | D55: $ | E55: 0 | F55: Propane Forklift | G55: Hard code | H55: ibv29
B56: 30 | C56: Costs of mischarging or power failures | D56: $ | E56: 0 | F56: Electric Forklift | G56: Hard code | H56: ibv30
B57: 31 | C57: Utility demand charge for recharging per kW | D57: $ | E57: 0.1 | F57: Electric Forklift | G57: Hard code | H57: ibv31
B58: 32 | C58: CO and other safety costs per hour for Propane Forklift | D58: $ | E58: 1.15 | F58: Propane Forklift | G58: Hard code | H58: ibv32
B59: 33 | C59: Safety costs per hour for Electric Forklift | D59: $ | E59: 0 | F59: Electric Forklift | G59: Hard code | H59: ibv33
B60: 34 | C60: HVAC cost for charging space | D60: $ | E60: 18 | F60: Electric Forklift | G60: Hard code | H60: ibv34
B61: 35 | C61: Additional Propane Forklift Cylinder | D61: $ | E61: 275 | F61: Propane Forklift | G61: Hard code | H61: ibv35
B65: Calculated Variables
B68: S.No | C68: Parameter | D68: Unit | E68: Value | F68: Variable Using Entity | G68: Formula | H68: Variable Code Name | J68: Calculated Cost Variables Table
B69: 1 | C69: Individual Battery and Charger Cost for Lead Acid Battery | D69: $ | E69: =E28+E48 -> 7500 | F69: Lead Acid Electric Forklift only | G69: ibv2 + ibv22 | H69: cv1
B70: 2 | C70: Individual Battery and Charger Cost for Lithium Ion Battery | D70: $ | E70: =E29+E48 -> 13500 | F70: Lithium Ion Electric Forklift only | G70: ibv3 + ibv22 | H70: cv2
B71: 3 | C71: Cost of Interior Space for Cylinder Storage | D71: $ | E71: =E30*E31 -> 160 | F71: Propane Forklift | G71: ibv4 * ibv5 | H71: cv3
B72: 4 | C72: Cost of Interior Space for Battery Storage and charging | D72: $ | E72: =E30*E32 -> 1600 | F72: Both Lead Acid & Lithium Ion Electric Forklifts | G72: ibv4 * ibv6 | H72: cv4
B73: 5 | C73: Cost of Exterior Space for Cylinder Storage | D73: $ | E73: =E30*E33 -> 160 | F73: Propane Forklift | G73: ibv4 * ibv7 | H73: cv5
B74: 6 | C74: Cost of Parts and Supplies for Propane Forklift | D74: $ | E74: =E52*E53 -> 120 | F74: Propane Forklift | G74: ibv26 * ibv27 | H74: cv6
B75: 7 | C75: Total Fuel Cost for Propane | D75: $ | E75: =E8*E9*E13 -> 4488 | F75: Propane Forklift | G75: u3 * u4 * u8 | H75: cv7
B76: 8 | C76: Cost of Utility demand for recharging | D76: $ | E76: =E10*E13*E57 -> 1249.5 | F76: Both Lead Acid & Lithium Ion Electric Forklifts | G76: u5 * u8 * ibv31 | H76: cv8
B77: 9 | C77: Total Electricity Cost | D77: $ | E77: =E10*E11*E13 -> 1374.45 | F77: Both Lead Acid & Lithium Ion Electric Forklifts | G77: u5 * u6 * u8 | H77: cv9
B78: 10 | C78: Total CO and other safety costs for Propane Forklift | D78: $ | E78: =E13*E58 -> 1955 | F78: Propane Forklift | G78: u8 * ibv32 | H78: cv10
B79: 11 | C79: Total Charging Space HVAC Costs | D79: $ | E79: =E60*E32 -> 3600 | F79: Both Lead Acid & Lithium Ion Electric Forklifts | G79: ibv6 * ibv34 | H79: cv11
B83: Calculated Costs of Forklift By Segment
M85: Calculated Segemented Costs Table
B86: S.No | C86: Cost Category | D86: Unit | E86: Propane | F86: Formula | G86: Lead Acid | H86: Formula | I86: Lithium Ion | J86: Formula
B87: 1 | C87: Acquisition Cost | D87: $ | E87: =E6 -> 30000 | F87: u1 | G87: =E7+E69 -> 47500 | H87: u2 + cv1 | I87: =E7+E70 -> 53500 | J87: u2 + cv2
B88: 2 | C88: Operating Cost | D88: $ | E88: =E27+E35+E36+E49+E55+E75+E78 -> 7147 | F88: ibv1 + ibv9 + ibv10 + ibv23 + ibv29 + cv7 + cv10 | G88: =E49+E54+E56+E76+E77+E59 -> 2979.95 | H88: ibv23 + ibv28 + ibv30 + cv8 + cv9 + ibv 33 | I88: =E49+E54+E56+E76+E77+E59 -> 2979.95 | J88: ibv23 + ibv28 + ibv30 + cv8 + cv9 + ibv 33
B89: 3 | C89: Maintenance Cost | D89: $ | E89: =E50+E74 -> 1455 | F89: ibv24 + cv6 | G89: =E51 -> 1700 | H89: ibv25 | I89: =E51 -> 1700 | J89: ibv25
B90: 4 | C90: Infrastructure Cost | D90: $ | E90: =E71+E73+E41+E45+E61 -> 3595 | F90: cv3 + cv5 + ibv15 + ibv19 + ibv35 | G90: =E72+E37+E39+E40+E42+E43+E44+E46+E47+E48+E79 -> 23000 | H90: cv4 + ibv11 + ibv13 + ibv14 + ibv 16 + ibv 17 + ibv 18 + ibv20 + ibv21+ ibv22 + cv11 | I90: =E72+E38+E39+E40+E42+E43+E44+E46+E47+E48+E79 -> 29000 | J90: cv4 + ibv12 + ibv13 + ibv14 + ibv 16 + ibv 17 + ibv 18 + ibv20 + ibv21+ ibv22 + cv11
C91: Total | D91: S | E91: =SUM(E87:E90) -> 42197 | F91: Acquisition Cost + Operating Cost + Maintenance Cost + Infrastructure Cost | G91: =SUM(G87:G90) -> 75179.95 | H91: Acquisition Cost + Operating Cost + Maintenance Cost + Infrastructure Cost | I91: =SUM(I87:I90) -> 87179.95 | J91: Acquisition Cost + Operating Cost + Maintenance Cost + Infrastructure Cost
B95: Total Cost of Ownership Outputs
J97: Final Costs Output Table
B98: S.No | C98: Cost Category | D98: Unit | E98: Propane Forklfit | F98: Electric Forklift
B99: 1 | C99: Acquisition Cost | D99: $ | E99: =E87 -> 30000 | F99: =IF(E12="Lead Acid",G87,I87) -> 53500
B100: 2 | C100: Operating Cost | D100: $ | E100: =E88 -> 7147 | F100: =IF(E12="Lead Acid",G88,I88) -> 2979.95
B101: 3 | C101: Maintenance Cost | D101: $ | E101: =E89 -> 1455 | F101: =IF(E12="Lead Acid",G89,I89) -> 1700
B102: 4 | C102: Infrastructure Cost | D102: $ | E102: =E90 -> 3595 | F102: =IF(E12="Lead Acid",G90,I90) -> 29000
C103: Total Cost | D103: $ | E103: =E91 -> 42197 | F103: =IF(E12="Lead Acid",G91,I91) -> 87179.95
B109: Background Constant Data for Carbon FootPrint Chart - Propane
B112: S.No | C112: State | D112: Unit | E112: Carbon Intensity | F112: Variable Code Name
B113: 1 | C113: Alaska | D113: gCO2eq/MJ | E113: 80.72 | F113: C1_P1
B114: 2 | C114: Alabama | D114: gCO2eq/MJ | E114: 77.72 | F114: C1_P2
B115: 3 | C115: Arkansas | D115: gCO2eq/MJ | E115: 77.72 | F115: C1_P3
B116: 4 | C116: Arizona | D116: gCO2eq/MJ | E116: 80.72 | F116: C1_P4
B117: 5 | C117: California | D117: gCO2eq/MJ | E117: 80.72 | F117: C1_P5
B118: 6 | C118: Colorado | D118: gCO2eq/MJ | E118: 77.43 | F118: C1_P6
B119: 7 | C119: Connecticut | D119: gCO2eq/MJ | E119: 77.18 | F119: C1_P7
B120: 8 | C120: District of Columbia | D120: gCO2eq/MJ | E120: 77.18 | F120: C1_P8
B121: 9 | C121: Delaware | D121: gCO2eq/MJ | E121: 77.18 | F121: C1_P9
B122: 10 | C122: Florida | D122: gCO2eq/MJ | E122: 77.18 | F122: C1_P10
B123: 11 | C123: Georgia | D123: gCO2eq/MJ | E123: 77.18 | F123: C1_P11
B124: 12 | C124: Hawaii | D124: gCO2eq/MJ | E124: 80.72 | F124: C1_P12
B125: 13 | C125: Iowa | D125: gCO2eq/MJ | E125: 77.64 | F125: C1_P13
B126: 14 | C126: Idaho | D126: gCO2eq/MJ | E126: 77.43 | F126: C1_P14
B127: 15 | C127: Illinois | D127: gCO2eq/MJ | E127: 77.64 | F127: C1_P15 | J127: Background Emissions Constants Tables for Propane Forklifts
B128: 16 | C128: Indiana | D128: gCO2eq/MJ | E128: 77.64 | F128: C1_P16
B129: 17 | C129: Kansas | D129: gCO2eq/MJ | E129: 77.64 | F129: C1_P17
B130: 18 | C130: Kentucky | D130: gCO2eq/MJ | E130: 77.64 | F130: C1_P18
B131: 19 | C131: Louisiana | D131: gCO2eq/MJ | E131: 77.72 | F131: C1_P19
B132: 20 | C132: Massachusetts | D132: gCO2eq/MJ | E132: 77.18 | F132: C1_P20
B133: 21 | C133: Maryland | D133: gCO2eq/MJ | E133: 77.18 | F133: C1_P21
B134: 22 | C134: Maine | D134: gCO2eq/MJ | E134: 77.18 | F134: C1_P22
B135: 23 | C135: Michigan | D135: gCO2eq/MJ | E135: 77.64 | F135: C1_P23
B136: 24 | C136: Minnesota | D136: gCO2eq/MJ | E136: 77.64 | F136: C1_P24
B137: 25 | C137: Missouri | D137: gCO2eq/MJ | E137: 77.64 | F137: C1_P25
B138: 26 | C138: Mississippi | D138: gCO2eq/MJ | E138: 77.72 | F138: C1_P26
B139: 27 | C139: Montana | D139: gCO2eq/MJ | E139: 77.43 | F139: C1_P27
B140: 28 | C140: North Carolina | D140: gCO2eq/MJ | E140: 77.18 | F140: C1_P28
B141: 29 | C141: North Dakota | D141: gCO2eq/MJ | E141: 77.64 | F141: C1_P29
B142: 30 | C142: Nebraska | D142: gCO2eq/MJ | E142: 77.64 | F142: C1_P30
B143: 31 | C143: New Hampshire | D143: gCO2eq/MJ | E143: 77.18 | F143: C1_P31
B144: 32 | C144: New Jersey | D144: gCO2eq/MJ | E144: 77.18 | F144: C1_P32
B145: 33 | C145: New Mexico | D145: gCO2eq/MJ | E145: 77.72 | F145: C1_P33
B146: 34 | C146: Nevada | D146: gCO2eq/MJ | E146: 80.72 | F146: C1_P34
B147: 35 | C147: New York | D147: gCO2eq/MJ | E147: 77.18 | F147: C1_P35
B148: 36 | C148: Ohio | D148: gCO2eq/MJ | E148: 77.64 | F148: C1_P36
B149: 37 | C149: Oklahoma | D149: gCO2eq/MJ | E149: 77.64 | F149: C1_P37
B150: 38 | C150: Oregon | D150: gCO2eq/MJ | E150: 80.72 | F150: C1_P38
B151: 39 | C151: Pennsylvania | D151: gCO2eq/MJ | E151: 77.18 | F151: C1_P39
B152: 40 | C152: Rhode Island | D152: gCO2eq/MJ | E152: 77.18 | F152: C1_P40
B153: 41 | C153: South Carolina | D153: gCO2eq/MJ | E153: 77.18 | F153: C1_P41
B154: 42 | C154: South Dakota | D154: gCO2eq/MJ | E154: 77.64 | F154: C1_P42
B155: 43 | C155: Tennessee | D155: gCO2eq/MJ | E155: 77.64 | F155: C1_P43
B156: 44 | C156: Texas | D156: gCO2eq/MJ | E156: 77.72 | F156: C1_P44
B157: 45 | C157: Utah | D157: gCO2eq/MJ | E157: 77.43 | F157: C1_P45
B158: 46 | C158: Virginia | D158: gCO2eq/MJ | E158: 77.18 | F158: C1_P46
B159: 47 | C159: Vermont | D159: gCO2eq/MJ | E159: 77.18 | F159: C1_P47
B160: 48 | C160: Washington | D160: gCO2eq/MJ | E160: 80.72 | F160: C1_P48
B161: 49 | C161: Wisconsin | D161: gCO2eq/MJ | E161: 77.64 | F161: C1_P49
B162: 50 | C162: West Virginia | D162: gCO2eq/MJ | E162: 77.18 | F162: C1_P50
B163: 51 | C163: Wyoming | D163: gCO2eq/MJ | E163: 77.43 | F163: C1_P51
B167: Background Constants Data for Carbon FootPrint Chart - Propane
B170: S.No | C170: Parameters | D170: Unit | E170: Propane | F170: Variable Code Name
B171: 6 | C171: LHV of Conventional Propane | D171: BTU/gallon | E171: 84950 | F171: LHV1
B172: 7 | C172: LHV of Renewable Propane | D172: BTU/gallon | E172: 84950 | F172: LHV2
B173: 8 | C173: LHV of Renewable DME | D173: BTU/gallon | E173: 68925 | F173: LHV3
B174: 9 | C174: LHV of Conventional Propane diff unit | D174: MJ/kg | E174: 46.6 | F174: LHV4
B175: 10 | C175: LHV of Renewable Propane diff unit | D175: MJ/kg | E175: 46.6 | F175: LHV5
B176: 11 | C176: LHV of Renewable DME diff unit | D176: MJ/kg | E176: 28.88 | F176: LHV6
B177: 12 | C177: Carbon Intensity of Renewable DME | D177: gCO2eq/MJ | E177: -278 | F177: CI_P6
B181: Background Calculations Data for Carbon FootPrint Chart - Propane
B184: S.No | C184: States | D184: Unit | E184: Propane | F184: Formula | G184: Variable Code Name
B185: 1 | C185: Carbon Intensity of Conventional Propane | D185: gCO2eq/MJ | E185: =_xlfn.XLOOKUP(E14,C113:C163,E113:E163) -> 80.72 | F185: - | G185: CI_1
B186: 2 | C186: Carbon Intensity of Renewable Propane | D186: gCO2eq/MJ | E186: =E16 -> 43.5 | F186: u10 | G186: CI_2
B187: 3 | C187: Carbon Intensity of Renewable DME | D187: gCO2eq/MJ | E187: =E177 -> -278 | F187: CI_P6 | G187: CI_3
B188: 3 | C188: LHV of blend | D188: MJ/kg | E188: =(E17*0.01*E174)+(E18*0.01*E175)+(E19*0.01*E176) -> 46.6 | F188: (u11*0.01*LHV4)+(u12*0.01*LHV5)+(u13*0.01*LHV6) | G188: LB1 | J188: Background Emissions Calculated Variables Tables for Propane Forklifts
B189: 4 | C189: Specific volume of conventional propane | D189: gallon/kg | E189: =E174/(E171*0.00105506) -> 0.5199305966 | F189: LHV4/(LHV1*0.00105506) | G189: SV1
B190: 5 | C190: Specific volume of renewable propane | D190: gallon/kg | E190: =E175/(E172*0.00105506) -> 0.5199305966 | F190: LHV5/(LHV2*0.00105506) | G190: SV2
B191: 6 | C191: Specific volume of renewable DME | D191: gallon/kg | E191: =E176/(E173*0.00105506) -> 0.3971396566 | F191: LHV6/(LHV3*0.00105506) | G191: SV3
B192: 7 | C192: Specific volume of blend | D192: gallon/kg | E192: =(E17*0.01*E189)+(E18*0.01*E190)+(E19*0.01*E191) -> 0.5199305966 | F192: (u11*0.01*SV1)+(u12*0.01*SV2)+(u13*0.01*SV3) | G192: SVB1
B193: 8 | C193: Vol. percentage of conventional propane in blend | D193: % | E193: =E17*E189/E192 -> 100 | F193: (u11*SV1)/SVB1 | G193: VP1
B194: 9 | C194: Vol. percentage of renewable propane in blend | D194: % | E194: =E18*E190/E192 -> 0 | F194: (u12*SV2)/SVB1 | G194: VP2
B195: 10 | C195: Vol. percentage of renewable DME in blend | D195: % | E195: =E19*E191/E192 -> 0 | F195: (u13*SV3)/SVB1 | G195: VP3
B196: 11 | C196: Energy percentage of conventional propane in blend | D196: % | E196: =E17*E174/E188 -> 100 | F196: (u11*LHV4)/LB1 | G196: EP1
B197: 12 | C197: Energy percentage of renewable propane in blend | D197: % | E197: =E18*E175/E188 -> 0 | F197: (u12*LHV5)/LB1 | G197: EP2
B198: 13 | C198: Energy percentage of renewable DME in blend | D198: % | E198: =E19*E176/E188 -> 0 | F198: (u13*LHV6)/LB1 | G198: EP3
B199: 14 | C199: LHV of blended fuel gallon basis | D199: BTU/gallon | E199: =((E171*E193*0.01)+(E172*E194*0.01)+(E173*E195*0.01)) -> 84950 | F199: (LHV1*VP1*0.01)+(LHV2*VP2*0.01)+(LHV3*VP3*0.01) | G199: LBF1
B200: 15 | C200: Carbon intensity of the blend | D200: gCO2eq/MJ | E200: =(E185*E196*0.01)+(E186*E197*0.01)+(E177*E198*0.01) -> 80.72 | F200: (CI_1*EP1*0.01)+(CI_2*EP2*0.01)+(CI_3*EP3*0.01) | G200: CI_BL
B205: Background Constant Data for Carbon FootPrint Chart - Electricity
B208: S.No | C208: ISO Data | D208: Unit | E208: Electricity | F208: Variable Code Name
B209: 1 | C209: Arizona Public Service Company | D209: kgCO2eq/MWh | E209: 834.1258492 | F209: F1
B210: 2 | C210: Arlington Valley, LLC - AVBA | D210: kgCO2eq/MWh | E210: 628.3411511 | F210: F2
B211: 3 | C211: Associated Electric Cooperative, Inc. | D211: kgCO2eq/MWh | E211: 795.9957357 | F211: F3
B212: 4 | C212: Avista Corporation | D212: kgCO2eq/MWh | E212: 235.1691289 | F212: F4
B213: 5 | C213: Balancing Authority of Northern California | D213: kgCO2eq/MWh | E213: 451.5950794 | F213: F5
B214: 6 | C214: Bonneville Power Administration | D214: kgCO2eq/MWh | E214: 128.6165367 | F214: F6 | J214: Background Emissions Constants Tables for Electric Forklifts
B215: 7 | C215: California Independent System Operator | D215: kgCO2eq/MWh | E215: 396.4315951 | F215: F7
B216: 8 | C216: City of Tacoma, Department of Public Utilities, Light Division | D216: kgCO2eq/MWh | E216: 235.3764853 | F216: F8
B217: 9 | C217: Duke Energy Carolinas | D217: kgCO2eq/MWh | E217: 370.607106 | F217: F9
B218: 10 | C218: Duke Energy Florida, Inc. | D218: kgCO2eq/MWh | E218: 765.6309902 | F218: F10
B219: 11 | C219: Duke Energy Progress East | D219: kgCO2eq/MWh | E219: 437.6621736 | F219: F11
B220: 12 | C220: El Paso Electric Company | D220: kgCO2eq/MWh | E220: 763.8024156 | F220: F12
B221: 13 | C221: Electric Energy, Inc. | D221: kgCO2eq/MWh | E221: 1147.21641 | F221: F13
B222: 14 | C222: Electric Reliability Council of Texas, Inc. | D222: kgCO2eq/MWh | E222: 662.6615476 | F222: F14
B223: 15 | C223: Florida Municipal Power Pool | D223: kgCO2eq/MWh | E223: 739.855371 | F223: F15
B224: 16 | C224: Florida Power & Light Co. | D224: kgCO2eq/MWh | E224: 478.6385829 | F224: F16
B225: 17 | C225: Gainesville Regional Utilities | D225: kgCO2eq/MWh | E225: 816.396861 | F225: F17
B226: 18 | C226: Gila River Power, LLC | D226: kgCO2eq/MWh | E226: 610.55094 | F226: F18
B227: 19 | C227: Homestead, City of | D227: kgCO2eq/MWh | E227: 1533.519554 | F227: F19
B228: 20 | C228: Idaho Power Company | D228: kgCO2eq/MWh | E228: 119.2828909 | F228: F20
B229: 21 | C229: Imperial Irrigation District | D229: kgCO2eq/MWh | E229: 329.7869361 | F229: F21
B230: 22 | C230: ISO-NE | D230: kgCO2eq/MWh | E230: 399.8054474 | F230: F22
B231: 23 | C231: JEA | D231: kgCO2eq/MWh | E231: 855.1951328 | F231: F23
B232: 24 | C232: LG&E and KU Services Company as agent for Louisville Gas and Electric Company and Kentucky Utilities Company | D232: kgCO2eq/MWh | E232: 984.5638401 | F232: F24
B233: 25 | C233: Los Angeles Department of Water and Power | D233: kgCO2eq/MWh | E233: 583.4957717 | F233: F25
B234: 26 | C234: Midcontinent Independent System Operator, Inc. | D234: kgCO2eq/MWh | E234: 753.2766522 | F234: F26
B235: 27 | C235: Nevada Power Company | D235: kgCO2eq/MWh | E235: 552.7373076 | F235: F27
B236: 28 | C236: New York Independent System Operator | D236: kgCO2eq/MWh | E236: 323.1892791 | F236: F28
B237: 29 | C237: NorthWestern Corporation | D237: kgCO2eq/MWh | E237: 757.9519111 | F237: F29
B238: 30 | C238: Ohio Valley Electric Corporation | D238: kgCO2eq/MWh | E238: 1254.163115 | F238: F30
B239: 31 | C239: PacifiCorp East | D239: kgCO2eq/MWh | E239: 866.2127226 | F239: F31
B240: 32 | C240: PacifiCorp West | D240: kgCO2eq/MWh | E240: 224.5897538 | F240: F32
B241: 33 | C241: PJM Interconnection, LLC | D241: kgCO2eq/MWh | E241: 572.3470254 | F241: F33
B242: 34 | C242: Portland General Electric Company | D242: kgCO2eq/MWh | E242: 273.2583111 | F242: F34
B243: 35 | C243: PowerSouth Energy Cooperative | D243: kgCO2eq/MWh | E243: 776.5999197 | F243: F35
B244: 36 | C244: Public Service Company of Colorado | D244: kgCO2eq/MWh | E244: 653.7594784 | F244: F36
... 47 more rows
